[Event "MČR v rapid šachu družstev 2019"]
[Site "Teplice, Czech Republic"]
[Date "2019.09.15"]
[Round "6.6"]
[White "Cernousek, Lukas"]
[Black "Studnicka, Tomas"]
[Result "1-0"]
[TimeControl "15 min. + 5s"]
[WhiteElo "2478"]
[BlackElo "2379"]

1. Nf3 {[%clk 00:15:09]} {[%emt 00:00:01]} c5 {[%clk 00:09:37]} {[%emt
00:05:34]} 2. e3 {[%clk 00:14:17]} {[%emt 00:00:56]} Nc6 {[%clk 00:09:41]}
{[%emt 00:00:01]} 3. d4 {[%clk 00:14:22]} cxd4 {[%clk 00:09:45]} 4. exd4 {[%clk
00:14:26]} d5 {[%clk 00:09:49]} 5. Bd3 {[%clk 00:14:30]} {[%emt 00:00:03]} Nf6
{[%clk 00:09:45]} {[%emt 00:00:09]} 6. c3 {[%clk 00:14:30]} {[%emt 00:00:05]}
Bg4 {[%clk 00:09:42]} {[%emt 00:00:08]} 7. O-O {[%clk 00:14:33]} {[%emt
00:00:02]} e6 {[%clk 00:09:45]} {[%emt 00:00:01]} 8. Re1 {[%clk 00:14:33]}
{[%emt 00:00:05]} Bd6 {[%clk 00:09:46]} {[%emt 00:00:04]} 9. Nbd2 {[%clk
00:14:37]} O-O {[%clk 00:09:47]} {[%emt 00:00:06]} 10. Nf1 {[%clk 00:14:39]}
{[%emt 00:00:03]} Bh5 {[%clk 00:08:55]} {[%emt 00:00:56]} 11. Bg5 {[%clk
00:13:50]} {[%emt 00:00:54]} Be7 {[%clk 00:08:37]} {[%emt 00:00:24]} 12. Ng3
{[%clk 00:13:04]} {[%emt 00:00:51]} Bg6 {[%clk 00:08:41]} {[%emt 00:00:01]} 13.
Bxg6 {[%clk 00:13:07]} {[%emt 00:00:02]} hxg6 {[%clk 00:08:44]} {[%emt
00:00:02]} 14. Ne5 {[%clk 00:13:03]} {[%emt 00:00:09]} Nxe5 {[%clk 00:08:26]}
{[%emt 00:00:24]} 15. dxe5 {[%clk 00:13:05]} {[%emt 00:00:03]} Nd7 {[%clk
00:08:30]} 16. Bxe7 {[%clk 00:10:12]} {[%emt 00:02:58]} Qxe7 {[%emt 00:00:02]}
17. Qg4 Rfc8 {[%clk 00:08:23]} {[%emt 00:00:15]} 18. h4 {[%clk 00:09:44]}
{[%emt 00:00:38]} Rc4 {[%clk 00:08:26]} {[%emt 00:00:02]} 19. f4 {[%clk
00:09:48]} Qc5+ {[%clk 00:07:05]} {[%emt 00:01:26]} 20. Kh2 {[%clk 00:09:52]}
{[%emt 00:00:02]} Qf2 {[%clk 00:07:07]} {[%emt 00:00:03]} 21. Rf1 {[%clk
00:09:20]} {[%emt 00:00:37]} Qxb2 {[%clk 00:06:51]} {[%emt 00:00:21]} 22. h5
{[%clk 00:09:09]} {[%emt 00:00:16]} Nxe5 {[%clk 00:05:39]} {[%emt 00:01:16]} 23.
Qd1 {[%clk 00:07:34]} {[%emt 00:01:41]} Qxc3 {[%clk 00:04:54]} {[%emt
00:00:50]} 24. Rb1 {[%clk 00:06:23]} {[%emt 00:01:16]} f5 {[%clk 00:03:22]}
{[%emt 00:01:37]} 25. Rxb7 {[%clk 00:01:45]} {[%emt 00:04:43]} Ng4+ {[%clk
00:03:20]} {[%emt 00:00:07]} 26. Kh3 {[%clk 00:01:48]} {[%emt 00:00:01]} gxh5
{[%clk 00:03:13]} {[%emt 00:00:12]} 27. Rf3 {[%clk 00:01:17]} {[%emt 00:00:36]}
Qf6 {[%clk 00:02:49]} {[%emt 00:00:30]} 28. Nxh5 {[%clk 00:00:43]} {[%emt
00:00:40]} Qh6 {[%clk 00:02:53]} 29. Rxg7+ {[%clk 00:00:46]} {[%emt 00:00:01]}
Kf8 {[%clk 00:02:57]} {[%emt 00:00:01]} 30. Rg5 {[%clk 00:00:44]} {[%emt
00:00:08]} Rxf4 {[%clk 00:03:01]} {[%emt 00:00:01]} 31. Qe1 {[%clk 00:00:09]}
{[%emt 00:00:40]} Qxg5 {[%clk 00:02:58]} {[%emt 00:00:08]} 32. Nxf4 {[%clk
00:00:10]} {[%emt 00:00:03]} Qh6+ {[%clk 00:02:11]} {[%emt 00:00:52]} 33. Qh4
{[%clk 00:00:14]} {[%emt 00:00:01]} Qxh4+ {[%clk 00:02:15]} {[%emt 00:00:01]}
34. Kxh4 {[%clk 00:00:19]} Kf7 {[%clk 00:02:18]} 35. Ra3 {[%clk 00:00:12]}
{[%emt 00:00:13]} a5 {[%clk 00:02:17]} {[%emt 00:00:06]} 36. Rb3 {[%clk
00:00:16]} Kf6 {[%clk 00:02:09]} {[%emt 00:00:13]} 37. Rb6 {[%clk 00:00:18]}
{[%emt 00:00:04]} Re8 {[%clk 00:02:02]} {[%emt 00:00:12]} 38. Nxd5+ {[%clk
00:00:22]} Ke5 {[%clk 00:02:06]} 39. Nc7 {[%clk 00:00:07]} {[%emt 00:00:21]}
Ne3 {[%clk 00:01:56]} {[%emt 00:00:15]} 40. Nxe8 {[%clk 00:00:10]} {[%emt
00:00:02]} Nxg2+ {[%clk 00:01:58]} {[%emt 00:00:04]} 41. Kg3 {[%clk 00:00:13]}
{[%emt 00:00:01]} Ne3 {[%clk 00:02:00]} {[%emt 00:00:02]} 42. Rb5+ {[%clk
00:00:11]} {[%emt 00:00:07]} Ke4 {[%clk 00:02:05]} 43. Nd6+ {[%clk 00:00:10]}
{[%emt 00:00:07]} Kd5 {[%emt 00:00:12]} 1-0

[Event "MČR v rapid šachu družstev 2019"]
[Site "Teplice, Czech Republic"]
[Date "2019.09.15"]
[Round "6.7"]
[White "Sodoma, Jan"]
[Black "Vrbata, Zbynek"]
[Result "1/2-1/2"]
[TimeControl "15 min. + 5s"]
[WhiteElo "2358"]
[BlackElo "2376"]

1. Nf3 {[%clk 00:15:07]} {[%emt 00:00:02]} Nf6 {[%clk 00:15:08]} {[%emt
00:00:03]} 2. c4 {[%clk 00:15:09]} {[%emt 00:00:02]} g6 {[%clk 00:15:11]}
{[%emt 00:00:02]} 3. b3 {[%clk 00:15:13]} {[%emt 00:00:01]} Bg7 {[%clk
00:15:14]} {[%emt 00:00:03]} 4. Bb2 {[%clk 00:15:16]} {[%emt 00:00:01]} O-O
{[%clk 00:15:16]} {[%emt 00:00:03]} 5. g3 {[%clk 00:15:24]} {[%emt 00:00:02]}
b6 {[%clk 00:15:12]} {[%emt 00:00:15]} 6. Bg2 {[%clk 00:15:26]} {[%emt
00:00:02]} Bb7 {[%clk 00:15:16]} {[%emt 00:00:01]} 7. O-O {[%clk 00:15:28]}
{[%emt 00:00:02]} c5 {[%clk 00:15:15]} {[%emt 00:00:07]} 8. d4 {[%clk
00:15:28]} {[%emt 00:00:05]} cxd4 {[%clk 00:15:12]} {[%emt 00:00:08]} 9. Qxd4
{[%clk 00:15:27]} {[%emt 00:00:05]} Nc6 {[%clk 00:15:09]} {[%emt 00:00:08]} 10.
Qd3 {[%clk 00:15:14]} {[%emt 00:00:18]} d5 {[%clk 00:14:35]} {[%emt 00:00:37]}
11. cxd5 {[%clk 00:15:16]} {[%emt 00:00:05]} Qxd5 {[%clk 00:14:36]} {[%emt
00:00:04]} 12. Qxd5 {[%clk 00:15:16]} {[%emt 00:00:04]} Nxd5 {[%clk 00:14:39]}
{[%emt 00:00:02]} 13. Bxg7 {[%clk 00:15:19]} {[%emt 00:00:02]} Kxg7 {[%clk
00:14:42]} {[%emt 00:00:02]} 14. Rc1 {[%clk 00:14:37]} {[%emt 00:00:46]} Rac8
{[%clk 00:13:41]} {[%emt 00:01:06]} 15. Nbd2 {[%clk 00:14:10]} {[%emt
00:00:32]} Rfd8 {[%clk 00:12:33]} {[%emt 00:01:14]} 16. Nc4 {[%clk 00:13:36]}
{[%emt 00:00:39]} Ba8 {[%clk 00:12:04]} {[%emt 00:00:33]} 17. Ne1 {[%clk
00:13:24]} {[%emt 00:00:17]} Nd4 {[%clk 00:11:35]} {[%emt 00:00:35]} 18. Kf1
{[%clk 00:13:01]} {[%emt 00:00:27]} Nb4 {[%clk 00:10:42]} {[%emt 00:00:59]} 19.
Bxa8 {[%clk 00:12:48]} {[%emt 00:00:18]} Rxa8 {[%clk 00:10:46]} 20. e3 {[%clk
00:12:37]} {[%emt 00:00:16]} Ne6 {[%clk 00:10:41]} {[%emt 00:00:09]} 21. Ke2
{[%clk 00:11:48]} {[%emt 00:00:54]} Rac8 {[%clk 00:10:36]} {[%emt 00:00:10]} 22.
a3 {[%clk 00:11:46]} {[%emt 00:00:08]} Nd5 {[%clk 00:10:30]} {[%emt 00:00:10]}
23. Nf3 {[%clk 00:09:44]} {[%emt 00:02:07]} Nc5 {[%clk 00:09:33]} {[%emt
00:01:03]} 24. Ncd2 {[%clk 00:09:15]} {[%emt 00:00:34]} Ne6 {[%clk 00:07:35]}
{[%emt 00:02:02]} 25. Rc4 {[%clk 00:07:55]} {[%emt 00:01:25]} Rxc4 {[%emt
00:00:27]} 26. Nxc4 {[%clk 00:07:18]} {[%emt 00:00:33]} Nc3+ {[%clk 00:07:14]}
{[%emt 00:00:13]} 27. Kf1 {[%clk 00:07:15]} {[%emt 00:00:08]} Nc5 {[%clk
00:06:20]} {[%emt 00:00:59]} 28. Nd4 {[%clk 00:06:47]} {[%emt 00:00:33]} b5
{[%clk 00:05:34]} {[%emt 00:00:51]} 29. Ne5 {[%clk 00:04:18]} {[%emt 00:02:34]}
a5 {[%clk 00:02:21]} {[%emt 00:03:18]} 30. Nec6 {[%clk 00:02:52]} {[%emt
00:01:31]} Rd6 {[%clk 00:01:47]} {[%emt 00:00:39]} 31. Rc1 {[%clk 00:02:47]}
{[%emt 00:00:10]} N3e4 {[%clk 00:01:33]} {[%emt 00:00:19]} 32. b4 {[%clk
00:01:34]} {[%emt 00:01:18]} axb4 {[%clk 00:01:33]} {[%emt 00:00:05]} 33. axb4
{[%clk 00:01:38]} {[%emt 00:00:01]} Nd3 {[%clk 00:01:25]} {[%emt 00:00:12]} 34.
Rc2 {[%clk 00:01:41]} {[%emt 00:00:03]} Rf6 {[%clk 00:01:14]} {[%emt 00:00:16]}
35. f4 {[%clk 00:01:25]} {[%emt 00:00:21]} e5 {[%clk 00:01:10]} {[%emt
00:00:10]} 36. Nxb5 {[%clk 00:01:24]} {[%emt 00:00:05]} exf4 {[%clk 00:01:13]}
{[%emt 00:00:01]} 37. exf4 {[%clk 00:01:24]} {[%emt 00:00:04]} g5 {[%clk
00:01:18]} {[%emt 00:00:01]} 38. Nc7 {[%clk 00:01:14]} {[%emt 00:00:16]} gxf4
{[%clk 00:01:09]} {[%emt 00:00:14]} 39. Ne8+ {[%clk 00:01:17]} {[%emt
00:00:02]} Kg6 {[%clk 00:01:08]} {[%emt 00:00:06]} 40. Nxf6 {[%clk 00:00:57]}
{[%emt 00:00:24]} Kxf6 {[%clk 00:01:08]} {[%emt 00:00:05]} 41. gxf4 {[%clk
00:01:00]} {[%emt 00:00:02]} Nxf4 {[%clk 00:01:03]} {[%emt 00:00:11]} 42. b5
{[%clk 00:01:02]} {[%emt 00:00:03]} Nd5 {[%clk 00:01:06]} {[%emt 00:00:02]} 43.
Rb2 {[%clk 00:00:52]} {[%emt 00:00:14]} Nb6 {[%clk 00:01:07]} {[%emt 00:00:04]}
44. Nd4 {[%clk 00:00:51]} {[%emt 00:00:06]} Ke5 {[%clk 00:01:11]} {[%emt
00:00:02]} 45. Nc6+ {[%clk 00:00:52]} {[%emt 00:00:04]} Kd5 {[%clk 00:01:13]}
{[%emt 00:00:03]} 46. Kg2 {[%clk 00:00:47]} {[%emt 00:00:10]} Nc3 {[%clk
00:00:57]} {[%emt 00:00:21]} 47. Nd8 {[%clk 00:00:38]} {[%emt 00:00:13]} f6
{[%clk 00:00:57]} {[%emt 00:00:05]} 48. Kf3 {[%clk 00:00:41]} {[%emt 00:00:02]}
Kc4 {[%clk 00:00:52]} {[%emt 00:00:11]} 49. Rc2 {[%clk 00:00:20]} {[%emt
00:00:26]} Kd3 {[%clk 00:00:43]} {[%emt 00:00:13]} 50. Rb2 {[%clk 00:00:10]}
{[%emt 00:00:14]} Kc4 {[%clk 00:00:47]} {[%emt 00:00:03]} 51. Kf4 {[%clk
00:00:10]} {[%emt 00:00:04]} Nxb5 {[%clk 00:00:49]} {[%emt 00:00:04]} 52. Kf5
{[%clk 00:00:12]} {[%emt 00:00:02]} Nd5 {[%clk 00:00:52]} {[%emt 00:00:02]} 53.
Nc6 {[%clk 00:00:09]} {[%emt 00:00:08]} Nbc3 {[%clk 00:00:49]} {[%emt
00:00:08]} 54. Ke6 {[%clk 00:00:09]} {[%emt 00:00:05]} Kc5 {[%clk 00:00:52]}
{[%emt 00:00:02]} 55. Nd8 {[%clk 00:00:09]} {[%emt 00:00:05]} Ne4 {[%clk
00:00:49]} {[%emt 00:00:08]} 56. Rc2+ {[%clk 00:00:13]} {[%emt 00:00:02]} Nec3
{[%clk 00:00:49]} {[%emt 00:00:05]} 57. Kf7 {[%clk 00:00:10]} {[%emt 00:00:08]}
Kd4 {[%clk 00:00:50]} {[%emt 00:00:04]} 58. Kg7 {[%clk 00:00:11]} {[%emt
00:00:03]} f5 {[%clk 00:00:54]} {[%emt 00:00:01]} 59. Kxh7 {[%clk 00:00:13]}
{[%emt 00:00:02]} f4 {[%clk 00:00:58]} {[%emt 00:00:01]} 60. Ne6+ {[%clk
00:00:14]} {[%emt 00:00:04]} Ke3 {[%clk 00:01:00]} {[%emt 00:00:04]} 61. h4
{[%clk 00:00:12]} {[%emt 00:00:06]} f3 {[%clk 00:01:05]} 62. h5 {[%clk
00:00:11]} {[%emt 00:00:07]} Ne2 {[%clk 00:01:09]} 63. Ra2 {[%clk 00:00:07]}
{[%emt 00:00:08]} f2 {[%clk 00:01:13]} {[%emt 00:00:01]} 64. Ra1 {[%clk
00:00:12]} {[%emt 00:00:01]} Nf6+ {[%clk 00:01:03]} {[%emt 00:00:15]} 65. Kg6
{[%clk 00:00:15]} {[%emt 00:00:01]} Nxh5 {[%clk 00:01:07]} {[%emt 00:00:01]} 66.
Kxh5 {[%clk 00:00:18]} {[%emt 00:00:02]} Ng3+ {[%clk 00:01:11]} {[%emt
00:00:01]} 67. Kg4 {[%clk 00:00:20]} {[%emt 00:00:02]} f1=Q {[%clk 00:01:15]}
{[%emt 00:00:02]} 68. Rxf1 {[%clk 00:00:21]} {[%emt 00:00:04]} Nxf1 {[%clk
00:01:19]} 1/2-1/2

[Event "MČR v rapid šachu družstev 2019"]
[Site "Teplice, Czech Republic"]
[Date "2019.09.15"]
[Round "6.8"]
[White "Kuba, Jindrich"]
[Black "Cech, Pavel"]
[Result "0-1"]
[TimeControl "15 min. + 5s"]
[WhiteElo "2229"]
[BlackElo "2394"]

1. e4 {[%clk 00:15:08]} {[%emt 00:00:01]} e6 {[%clk 00:15:09]} {[%emt
00:00:02]} 2. d4 {[%clk 00:15:09]} {[%emt 00:00:03]} d5 {[%clk 00:15:13]}
{[%emt 00:00:01]} 3. Nc3 {[%clk 00:15:11]} {[%emt 00:00:03]} Bb4 {[%clk
00:15:15]} {[%emt 00:00:02]} 4. e5 {[%clk 00:15:14]} {[%emt 00:00:03]} c5
{[%clk 00:15:19]} {[%emt 00:00:01]} 5. a3 {[%clk 00:15:17]} {[%emt 00:00:02]}
Bxc3+ {[%clk 00:15:22]} {[%emt 00:00:01]} 6. bxc3 {[%clk 00:15:21]} {[%emt
00:00:01]} Ne7 {[%clk 00:15:25]} {[%emt 00:00:03]} 7. Nf3 {[%clk 00:15:17]}
{[%emt 00:00:09]} b6 {[%clk 00:15:26]} {[%emt 00:00:04]} 8. Be2 {[%clk
00:15:13]} {[%emt 00:00:09]} Ba6 {[%clk 00:15:17]} {[%emt 00:00:14]} 9. O-O
{[%clk 00:15:14]} {[%emt 00:00:04]} Bxe2 {[%clk 00:14:22]} {[%emt 00:01:00]} 10.
Qxe2 {[%clk 00:15:18]} {[%emt 00:00:01]} O-O {[%clk 00:13:56]} {[%emt
00:00:31]} 11. a4 {[%clk 00:15:21]} {[%emt 00:00:02]} cxd4 {[%clk 00:13:14]}
{[%emt 00:00:47]} 12. cxd4 {[%clk 00:15:24]} {[%emt 00:00:02]} Nbc6 {[%clk
00:13:18]} {[%emt 00:00:01]} 13. Ba3 {[%clk 00:14:54]} {[%emt 00:00:35]} Na5
{[%clk 00:11:19]} {[%emt 00:02:04]} 14. Nd2 {[%clk 00:14:31]} {[%emt 00:00:28]}
Rc8 {[%clk 00:11:06]} {[%emt 00:00:19]} 15. Rfc1 {[%clk 00:14:04]} {[%emt
00:00:32]} Nc4 {[%clk 00:10:15]} {[%emt 00:00:56]} 16. Nxc4 {[%clk 00:13:33]}
{[%emt 00:00:36]} Rxc4 {[%clk 00:10:17]} {[%emt 00:00:03]} 17. Bb2 {[%clk
00:12:58]} {[%emt 00:00:40]} Nf5 {[%clk 00:09:14]} {[%emt 00:01:08]} 18. c3
{[%clk 00:12:57]} {[%emt 00:00:06]} Qh4 {[%clk 00:08:18]} {[%emt 00:01:01]} 19.
g3 {[%clk 00:12:20]} {[%emt 00:00:42]} Qh3 {[%clk 00:08:14]} {[%emt 00:00:08]}
20. a5 {[%clk 00:11:43]} {[%emt 00:00:42]} b5 {[%clk 00:08:04]} {[%emt
00:00:15]} 21. a6 {[%clk 00:11:16]} {[%emt 00:00:32]} Rfc8 {[%clk 00:07:23]}
{[%emt 00:00:45]} 22. Rd1 {[%clk 00:10:52]} {[%emt 00:00:29]} h5 {[%clk
00:06:47]} {[%emt 00:00:41]} 23. Rab1 {[%clk 00:09:19]} {[%emt 00:01:39]} h4
{[%clk 00:05:16]} {[%emt 00:01:36]} 24. Ba1 {[%clk 00:07:56]} {[%emt 00:01:28]}
hxg3 {[%clk 00:04:51]} {[%emt 00:00:31]} 25. fxg3 {[%clk 00:07:35]} {[%emt
00:00:24]} Rb8 {[%clk 00:04:16]} {[%emt 00:00:40]} 26. Bb2 {[%clk 00:07:06]}
{[%emt 00:00:34]} b4 {[%clk 00:04:07]} {[%emt 00:00:15]} 27. Ba1 {[%clk
00:06:37]} {[%emt 00:00:34]} b3 {[%clk 00:04:07]} {[%emt 00:00:06]} 28. Bb2
{[%clk 00:06:41]} {[%emt 00:00:01]} Rb6 {[%clk 00:03:31]} {[%emt 00:00:41]} 29.
Ra1 {[%clk 00:06:37]} {[%emt 00:00:08]} Qh6 {[%clk 00:02:55]} {[%emt 00:00:42]}
30. Rd3 {[%clk 00:05:30]} {[%emt 00:01:11]} Rcc6 {[%clk 00:02:47]} {[%emt
00:00:13]} 31. Rf3 {[%clk 00:05:04]} {[%emt 00:00:30]} Nxd4 {[%clk 00:02:45]}
{[%emt 00:00:08]} 32. cxd4 {[%clk 00:02:40]} {[%emt 00:02:29]} Rc2 {[%clk
00:02:48]} {[%emt 00:00:02]} 33. Bc1 {[%clk 00:02:44]} {[%emt 00:00:01]} Rxc1+
{[%clk 00:02:39]} {[%emt 00:00:14]} 34. Rxc1 {[%clk 00:02:42]} {[%emt
00:00:08]} Qxc1+ {[%clk 00:02:42]} {[%emt 00:00:02]} 35. Rf1 {[%clk 00:02:38]}
{[%emt 00:00:09]} b2 {[%clk 00:02:45]} {[%emt 00:00:02]} 36. Qf3 {[%clk
00:02:28]} {[%emt 00:00:15]} Qxf1+ {[%emt 00:00:09]} 0-1

[Event "MČR v rapid šachu družstev 2019"]
[Site "Teplice, Czech Republic"]
[Date "2019.09.15"]
[Round "6.9"]
[White "Slampa, Jan"]
[Black "Krejci, Jan"]
[Result "1/2-1/2"]
[TimeControl "15 min. + 5s"]
[WhiteElo "2166"]
[BlackElo "2496"]

1. d4 {[%clk 00:15:08]} {[%emt 00:00:02]} Nf6 {[%clk 00:15:10]} {[%emt
00:00:01]} 2. c4 {[%clk 00:15:11]} e6 {[%clk 00:15:14]} {[%emt 00:00:01]} 3.
Nc3 {[%clk 00:15:15]} {[%emt 00:00:01]} Bb4 {[%clk 00:15:17]} {[%emt 00:00:03]}
4. Qc2 {[%clk 00:15:18]} {[%emt 00:00:01]} d5 {[%clk 00:15:21]} {[%emt
00:00:01]} 5. cxd5 {[%clk 00:15:04]} {[%emt 00:00:19]} exd5 {[%clk 00:15:25]}
{[%emt 00:00:01]} 6. Bd2 {[%clk 00:14:47]} {[%emt 00:00:21]} c6 {[%clk
00:14:58]} {[%emt 00:00:32]} 7. a3 {[%clk 00:14:28]} {[%emt 00:00:25]} Bd6
{[%clk 00:15:01]} {[%emt 00:00:01]} 8. Nf3 {[%clk 00:14:20]} {[%emt 00:00:13]}
O-O {[%clk 00:14:45]} {[%emt 00:00:21]} 9. Bg5 {[%clk 00:13:37]} {[%emt
00:00:47]} Re8 {[%clk 00:14:41]} {[%emt 00:00:10]} 10. e3 {[%clk 00:13:40]}
{[%emt 00:00:02]} Bg4 {[%clk 00:14:41]} {[%emt 00:00:05]} 11. Bd3 {[%clk
00:13:27]} {[%emt 00:00:18]} h6 {[%clk 00:14:44]} {[%emt 00:00:02]} 12. Bh4
{[%clk 00:13:27]} {[%emt 00:00:05]} Bxf3 {[%clk 00:14:04]} {[%emt 00:00:46]} 13.
gxf3 {[%clk 00:13:26]} {[%emt 00:00:05]} Nbd7 {[%clk 00:14:07]} {[%emt
00:00:02]} 14. O-O-O {[%clk 00:13:04]} {[%emt 00:00:27]} b5 {[%clk 00:13:59]}
{[%emt 00:00:15]} 15. e4 {[%clk 00:12:40]} {[%emt 00:00:29]} Bf4+ {[%clk
00:12:49]} {[%emt 00:01:14]} 16. Kb1 {[%clk 00:12:43]} {[%emt 00:00:02]} Qb6
{[%clk 00:12:50]} {[%emt 00:00:04]} 17. Ne2 {[%clk 00:12:35]} {[%emt 00:00:14]}
Nh5 {[%clk 00:12:15]} {[%emt 00:00:39]} 18. exd5 {[%clk 00:10:58]} {[%emt
00:01:41]} cxd5 {[%clk 00:11:56]} {[%emt 00:00:24]} 19. Qb3 {[%clk 00:11:00]}
{[%emt 00:00:04]} Qd6 {[%clk 00:11:01]} {[%emt 00:01:00]} 20. Bg3 {[%clk
00:09:23]} {[%emt 00:01:42]} Bxg3 {[%clk 00:07:51]} {[%emt 00:03:14]} 21. hxg3
{[%clk 00:09:16]} {[%emt 00:00:12]} Nhf6 {[%clk 00:07:56]} 22. Qxb5 {[%clk
00:08:06]} {[%emt 00:01:14]} Rab8 {[%clk 00:07:37]} {[%emt 00:00:24]} 23. Qa6
{[%clk 00:07:34]} {[%emt 00:00:38]} Rb6 {[%clk 00:07:31]} {[%emt 00:00:11]} 24.
Qxa7 {[%clk 00:07:14]} {[%emt 00:00:24]} Rb3 {[%clk 00:07:18]} {[%emt
00:00:18]} 25. Qa6 {[%clk 00:06:49]} {[%emt 00:00:30]} Qb8 {[%clk 00:07:08]}
{[%emt 00:00:15]} 26. Rd2 {[%clk 00:06:34]} {[%emt 00:00:20]} Re6 {[%clk
00:07:12]} {[%emt 00:00:02]} 27. Qa4 {[%clk 00:05:29]} {[%emt 00:01:10]} Rxd3
{[%clk 00:07:15]} {[%emt 00:00:02]} 28. Rxd3 {[%clk 00:05:23]} {[%emt
00:00:11]} Rxe2 {[%clk 00:07:18]} {[%emt 00:00:01]} 29. Rb3 {[%clk 00:05:16]}
{[%emt 00:00:11]} Qe8 {[%clk 00:06:34]} {[%emt 00:00:50]} 30. Rc1 {[%clk
00:05:00]} {[%emt 00:00:21]} Rxf2 {[%clk 00:06:13]} {[%emt 00:00:26]} 31. Qa6
{[%clk 00:04:56]} {[%emt 00:00:08]} Nf8 {[%clk 00:05:00]} {[%emt 00:01:18]} 32.
Rc8 {[%clk 00:04:41]} {[%emt 00:00:21]} Qe1+ {[%clk 00:04:43]} {[%emt
00:00:21]} 33. Ka2 {[%clk 00:04:44]} {[%emt 00:00:01]} N6d7 {[%clk 00:04:46]}
{[%emt 00:00:03]} 34. Rb7 {[%clk 00:01:27]} {[%emt 00:03:22]} Qd2 {[%clk
00:03:51]} {[%emt 00:01:00]} 35. Qd6 {[%clk 00:01:02]} {[%emt 00:00:30]} Kh7
{[%clk 00:02:59]} {[%emt 00:00:57]} 36. Qxd5 {[%clk 00:00:51]} {[%emt
00:00:16]} Qd3 {[%clk 00:01:28]} {[%emt 00:01:36]} 37. Qxf7 {[%clk 00:00:20]}
{[%emt 00:00:36]} Qxd4 {[%clk 00:01:08]} {[%emt 00:00:25]} 38. Rxf8 {[%clk
00:00:13]} {[%emt 00:00:12]} Nxf8 {[%clk 00:01:01]} {[%emt 00:00:12]} 39. Qxf8
{[%clk 00:00:16]} {[%emt 00:00:01]} Qd5+ {[%clk 00:00:43]} {[%emt 00:00:23]} 40.
Rb3 {[%clk 00:00:20]} Rxb2+ {[%clk 00:00:38]} {[%emt 00:00:09]} 41. Kxb2 {[%clk
00:00:21]} {[%emt 00:00:05]} Qd2+ {[%clk 00:00:42]} 42. Ka1 {[%clk 00:00:12]}
{[%emt 00:00:15]} Qc1+ {[%clk 00:00:39]} {[%emt 00:00:09]} 43. Ka2 {[%clk
00:00:15]} {[%emt 00:00:01]} Qc2+ {[%clk 00:00:41]} {[%emt 00:00:02]} 44. Rb2
{[%clk 00:00:19]} {[%emt 00:00:02]} Qc4+ {[%clk 00:00:45]} 45. Kb1 {[%clk
00:00:21]} {[%emt 00:00:03]} Qf1+ {[%clk 00:00:34]} {[%emt 00:00:15]} 46. Kc2
{[%clk 00:00:22]} {[%emt 00:00:05]} Qc4+ {[%clk 00:00:36]} {[%emt 00:00:04]} 47.
Kd1 {[%clk 00:00:15]} {[%emt 00:00:11]} Qd3+ {[%clk 00:00:12]} {[%emt
00:00:29]} 48. Ke1 {[%clk 00:00:07]} {[%emt 00:00:14]} Qe3+ {[%clk 00:00:07]}
{[%emt 00:00:10]} 49. Re2 {[%clk 00:00:09]} {[%emt 00:00:02]} Qg1+ {[%clk
00:00:12]} 50. Kd2 {[%clk 00:00:13]} {[%emt 00:00:01]} Qd4+ {[%clk 00:00:16]}
51. Kc2 {[%clk 00:00:14]} {[%emt 00:00:04]} Qc4+ {[%clk 00:00:20]} {[%emt
00:00:01]} 52. Kb2 {[%clk 00:00:16]} {[%emt 00:00:03]} Qxe2+ {[%clk 00:00:24]}
{[%emt 00:00:02]} 53. Kb3 {[%clk 00:00:13]} {[%emt 00:00:07]} Qd3+ {[%clk
00:00:28]} {[%emt 00:00:01]} 54. Kb2 {[%clk 00:00:14]} {[%emt 00:00:04]}
1/2-1/2